{"text_format":"2","workbook":"xlsx","n_sheets":1,"sheets":["INFORME 6"],"not_rendered":{"charts":0,"images":0,"macros":0,"external_links":0,"defined_names":2,"comments":0,"pivot_tables":0},"unopened":[],"bounds":{"document_bytes":16777216,"sheet_cells":100000,"run_cost":"one","rows_first":2000,"rows_last":500,"rows_between":2000,"halvings":0,"cell_chars":16384,"cell_head_chars":4096},"cells_cut":0,"cells_raw":0,"read":"whole","date_system":"1900"}

{"sheet":"INFORME 6","index":0,"n_rows":58,"n_cols":6,"rows_kept":58,"cut":false,"hidden":false,"merged":[[2,0,2,5],[6,0,6,1],[7,0,7,1],[8,0,8,1]]}
["AMÉRICA MÓVIL PERÚ S.A.C."]
[]
["INFORME 6: INGRESOS OPERATIVOS MAYORISTAS POR EMPRESA"]
[]
["Periodo de reporte: Enero a Diciembre 2015"]
[]
["Expresado en Miles de Nuevos Soles",null,"Ingresos calculados (en base a precios de lista)","Ajustes\n(descuentos y\npromociones)","Estado de Resultados de Contabilidad Separada (valor facturado)","Nota"]
["INGRESOS OPERATIVOS MAYORISTAS",null,{"$f":"+C10+C51+C52","v":392064.54191300005},{"$f":"+D10+D51+D52","v":0},392064.54191300005]
["De empresas operadoras vinculadas",null,"No aplica","No aplica","No aplica"]
["De empresas operadoras no vinculadas",null,{"$f":"+C11+C21+C31+C41","v":304377.90851100005},{"$f":"+D11+D21+D31+D41","v":0},304377.90851100005]
["TELEFÓNICA DEL PERÚ S.A.A.",null,{"$f":"+SUM(C12:C20)","v":212009.61511300001},{"$f":"+SUM(D12:D20)","v":0},212009.61511300001]
[null," Transporte Conmutado Local  ",0,0,{"$f":"+C12-D12","v":0}]
[null," Transporte Conmutado de Larga Distancia Nacional  ",160.865711,0,160.865711]
[null," Acceso a los Teléfonos de Uso Público  ",31.350614,0,31.350614]
[null," Terminación de Llamadas en la Red de Servicio Móvil  ",197685.50328400001,0,197685.50328400001]
[null," Terminación de Llamadas en la Red del Servicio de Telefonía Fija Local  ",11012.267476999999,0,11012.267476999999]
[null," Facturación y Recaudación  ",0,0,0]
[null," Adecuación de Red  ",385.78338000000002,0,385.78338000000002]
[null," Acceso a la Plataforma de Pago  ",17.719099,0,17.719099]
[null," Enlaces de Interconexión  ",2716.125548,0,2716.125548]
["ENTEL PERÚ",null,{"$f":"+SUM(C22:C30)","v":76181.011442000017},{"$f":"+SUM(D22:D30)","v":0},76181.011442000017]
[null," Transporte Conmutado Local  ",2.4412040000000004,0,{"$f":"+C22-D22","v":2.4412040000000004}]
[null," Transporte Conmutado de Larga Distancia Nacional  ",193.313016,0,193.313016]
[null," Acceso a los Teléfonos de Uso Público  ",0,0,0]
[null," Terminación de Llamadas en la Red de Servicio Móvil  ",73460.351170000009,0,73460.351170000009]
[null," Terminación de Llamadas en la Red del Servicio de Telefonía Fija Local  ",1087.9889920000001,0,1087.9889920000001]
[null," Facturación y Recaudación  ",0,0,0]
[null," Adecuación de Red  ",1209.49224,0,1209.49224]
[null," Acceso a la Plataforma de Pago  ",0,0,0]
[null," Enlaces de Interconexión  ",227.42482000000001,0,227.42482000000001]
["VIETTEL PERÚ S.A.C.",null,{"$f":"+SUM(C32:C40)","v":7230.973054},{"$f":"+SUM(D32:D40)","v":0},7230.973054]
[null," Transporte Conmutado Local  ",0.59868100000000002,0,{"$f":"+C32-D32","v":0.59868100000000002}]
[null," Transporte Conmutado de Larga Distancia Nacional  ",23.156784999999999,0,23.156784999999999]
[null," Acceso a los Teléfonos de Uso Público  ",0,0,0]
[null," Terminación de Llamadas en la Red de Servicio Móvil  ",6883.049164,0,6883.049164]
[null," Terminación de Llamadas en la Red del Servicio de Telefonía Fija Local  ",55.982593999999999,0,55.982593999999999]
[null," Facturación y Recaudación  ",0,0,0]
[null," Adecuación de Red  ",268.18583000000001,0,268.18583000000001]
[null," Acceso a la Plataforma de Pago  ",0,0,0]
[null," Enlaces de Interconexión  ",0,0,0]
["OTROS OPERADORES",null,{"$f":"+SUM(C42:C50)","v":8956.3089019999989},{"$f":"+SUM(D42:D50)","v":0},8956.3089019999989]
[null," Transporte Conmutado Local  ",37.614824999999996,0,{"$f":"+C42-D42","v":37.614824999999996}]
[null," Transporte Conmutado de Larga Distancia Nacional  ",153.26343199999999,0,153.26343199999999]
[null," Acceso a los Teléfonos de Uso Público  ",4.6975090000000002,0,4.6975090000000002]
[null," Terminación de Llamadas en la Red de Servicio Móvil  ",2163.9985240000001,0,2163.9985240000001]
[null," Terminación de Llamadas en la Red del Servicio de Telefonía Fija Local  ",633.03959099999997,0,633.03959099999997]
[null," Facturación y Recaudación  ",29.125205000000001,0,29.125205000000001]
[null," Adecuación de Red  ",41.279019999999996,0,41.279019999999996]
[null," Acceso a la Plataforma de Pago  ",125.135096,0,125.135096]
[null," Enlaces de Interconexión  ",5768.1556999999993,0,5768.1556999999993]
["De redes internacionales",null,64884.144310000003,0,64884.144310000003]
["Otros",null,22802.489092,0,22802.489092]
["Ingreso Imputado",null,"No aplica","No aplica","No aplica"]
[]
[null,"(*) Nota: en el presente informe se consideran los siguientes conceptos:"]
[null,"----> Sección \"De empresas operadoras no vinculadas\": las categorías relacionadas a la línea de negocio de Interconexión, a excepción de aquellos conceptos relacionados a originación internacional."]
[null,"----> Sección \"De redes internacionales\": las categorías relacionadas a la línea de negocio de Interconexión que incluyen componente de originación internacional (Categorías 56 y 57) y las componentes de Tránsito de Redes Internacional, la cual se encuentra incluida en la categoría 62."]
[null,"----> Sección \"Otros\": las categorías 48 y 50 y las componentes de Tránsito de Redes Saliente Internacional y otros conceptos asociados al negocio mayorista (Liquidación por Cascada, Interoperabilidad, Llamada por Llamada, etc). Estas dos últimas componentes se encuentra incluidas en la categoría 62."]